[Event "Late-Titled-Tuesday-Blitz-October-10-2023"]
[Site "Chess.com"]
[Date "2023.10.10"]
[Round "8"]
[White "luizzy"]
[Black "MMSANCHEZ"]
[Result "1-0"]
[WhiteElo "2564"]
[BlackElo "2734"]
[TimeControl "180+1"]
[EndTime "15:23:36 PDT"]
[Termination "luizzy won by checkmate"]

1. b3 {[%clk 0:03:00.9]} 1... e5 {[%clk 0:02:44.3]} 2. Bb2 {[%clk 0:03:01]} 2...
Nc6 {[%clk 0:02:44.3]} 3. e3 {[%clk 0:03:01.3]} 3... Nf6 {[%clk 0:02:44.8]} 4.
Bb5 {[%clk 0:03:01]} 4... Bd6 {[%clk 0:02:41.9]} 5. Na3 {[%clk 0:03:00.7]} 5...
Be7 {[%clk 0:02:42.3]} 6. Nc4 {[%clk 0:02:48]} 6... e4 {[%clk 0:02:40.6]} 7.
Bxc6 {[%clk 0:02:40]} 7... bxc6 {[%clk 0:02:39.4]} 8. h3 {[%clk 0:02:39.8]} 8...
O-O {[%clk 0:02:38.6]} 9. Ne2 {[%clk 0:02:39.3]} 9... Ba6 {[%clk 0:02:38.6]} 10.
Ng3 {[%clk 0:02:38]} 10... Re8 {[%clk 0:02:24.8]} 11. h4 {[%clk 0:02:10.8]}
11... d5 {[%clk 0:02:20.3]} 12. Ne5 {[%clk 0:02:09.1]} 12... Bd6 {[%clk
0:02:20.5]} 13. Nxc6 {[%clk 0:02:03.6]} 13... Qd7 {[%clk 0:02:21]} 14. Nd4
{[%clk 0:02:01.7]} 14... Bxg3 {[%clk 0:02:19.7]} 15. fxg3 {[%clk 0:02:02.6]}
15... c5 {[%clk 0:02:19.9]} 16. Ne2 {[%clk 0:01:59]} 16... Nh5 {[%clk 0:02:10]}
17. Nf4 {[%clk 0:01:41.2]} 17... Nxg3 {[%clk 0:02:04.5]} 18. Rh3 {[%clk
0:01:40.8]} 18... Nf5 {[%clk 0:01:54.8]} 19. Qg4 {[%clk 0:01:40.1]} 19... d4
{[%clk 0:01:45.2]} 20. Nh5 {[%clk 0:01:31.8]} 20... Qe6 {[%clk 0:01:39.2]} 21.
exd4 {[%clk 0:01:28.7]} 21... cxd4 {[%clk 0:01:20.8]} 22. O-O-O {[%clk
0:01:09.4]} 22... Rac8 {[%clk 0:01:15.9]} 23. Kb1 {[%clk 0:00:25.2]} 23... Qg6
{[%clk 0:00:48.2]} 24. Qxg6 {[%clk 0:00:25]} 24... hxg6 {[%clk 0:00:48.4]} 25.
Nf4 {[%clk 0:00:25.9]} 25... e3 {[%clk 0:00:48.9]} 26. dxe3 {[%clk 0:00:24.5]}
26... dxe3 {[%clk 0:00:49.4]} 27. Re1 {[%clk 0:00:22.3]} 27... e2 {[%clk
0:00:48.6]} 28. g4 {[%clk 0:00:20.3]} 28... Ne3 {[%clk 0:00:48.7]} 29. c4 {[%clk
0:00:15.9]} 29... Nxc4 {[%clk 0:00:21.8]} 30. bxc4 {[%clk 0:00:16.8]} 30... Rxc4
{[%clk 0:00:22]} 31. Rxe2 {[%clk 0:00:08.9]} 31... Rxe2 {[%clk 0:00:16.1]} 32.
Nxe2 {[%clk 0:00:09.8]} 32... Rxg4 {[%clk 0:00:16.2]} 33. Nc3 {[%clk 0:00:09.7]}
33... f5 {[%clk 0:00:15.7]} 34. Nd5 {[%clk 0:00:09.3]} 34... Bd3+ {[%clk
0:00:09.6]} 35. Kc1 {[%clk 0:00:09]} 35... Be4 {[%clk 0:00:08.5]} 36. Ne3 {[%clk
0:00:08.6]} 36... Rg1+ {[%clk 0:00:08.9]} 37. Kd2 {[%clk 0:00:09]} 37... Rb1
{[%clk 0:00:09.8]} 38. Bd4 {[%clk 0:00:08.3]} 38... f4 {[%clk 0:00:10.2]} 39.
Nc4 {[%clk 0:00:05.7]} 39... Rg1 {[%clk 0:00:10.4]} 40. Bxg1 {[%clk 0:00:05.5]}
40... Bd5 {[%clk 0:00:08]} 41. Kd3 {[%clk 0:00:04.3]} 41... Kf7 {[%clk
0:00:08.2]} 42. Bxa7 {[%clk 0:00:04.6]} 42... Ke6 {[%clk 0:00:08.6]} 43. Bd4
{[%clk 0:00:05.1]} 43... Kf5 {[%clk 0:00:09.1]} 44. a4 {[%clk 0:00:04.8]} 44...
Kg4 {[%clk 0:00:10]} 45. Rh2 {[%clk 0:00:04.8]} 45... Kg3 {[%clk 0:00:10.6]} 46.
Rd2 {[%clk 0:00:04.8]} 46... f3 {[%clk 0:00:11.2]} 47. Be5+ {[%clk 0:00:04]}
47... Kh3 {[%clk 0:00:09.5]} 48. Ne3 {[%clk 0:00:04.5]} 48... Be6 {[%clk
0:00:09.7]} 49. Rh2# {[%clk 0:00:04.9]} 1-0

[Event "Late-Titled-Tuesday-Blitz-October-10-2023"]
[Site "Chess.com"]
[Date "2023.10.10"]
[Round "8"]
[White "Beca95"]
[Black "Elsa167"]
[Result "1/2-1/2"]
[WhiteElo "2863"]
[BlackElo "2932"]
[TimeControl "180+1"]
[EndTime "15:23:38 PDT"]
[Termination "Game drawn by repetition"]

1. e4 {[%clk 0:03:00.9]} 1... e6 {[%clk 0:02:59]} 2. d4 {[%clk 0:02:59.9]} 2...
d5 {[%clk 0:02:59.6]} 3. Nc3 {[%clk 0:02:58]} 3... Bb4 {[%clk 0:02:59.3]} 4. e5
{[%clk 0:02:57.8]} 4... c5 {[%clk 0:02:59]} 5. Bd2 {[%clk 0:02:58.3]} 5... Ne7
{[%clk 0:02:58.5]} 6. a3 {[%clk 0:02:54]} 6... Bxc3 {[%clk 0:02:58.6]} 7. Bxc3
{[%clk 0:02:54.8]} 7... b6 {[%clk 0:02:58.6]} 8. h4 {[%clk 0:02:52.9]} 8... Ba6
{[%clk 0:02:47.9]} 9. Bxa6 {[%clk 0:02:51]} 9... Nxa6 {[%clk 0:02:48]} 10. h5
{[%clk 0:02:51.4]} 10... h6 {[%clk 0:02:47.7]} 11. Nf3 {[%clk 0:02:50.7]} 11...
Nb8 {[%clk 0:02:43.5]} 12. b4 {[%clk 0:02:42.7]} 12... cxd4 {[%clk 0:02:37.5]}
13. Bxd4 {[%clk 0:02:42]} 13... Nbc6 {[%clk 0:02:36.2]} 14. c3 {[%clk 0:02:41]}
14... Rc8 {[%clk 0:02:16.2]} 15. Rc1 {[%clk 0:02:36]} 15... Nf5 {[%clk
0:02:00.8]} 16. O-O {[%clk 0:02:33.9]} 16... O-O {[%clk 0:01:57.9]} 17. g3
{[%clk 0:02:31.8]} 17... Qd7 {[%clk 0:01:52.6]} 18. Kg2 {[%clk 0:02:22.7]} 18...
Rc7 {[%clk 0:01:42.7]} 19. Qd2 {[%clk 0:02:16.9]} 19... Ncxd4 {[%clk 0:01:39.1]}
20. cxd4 {[%clk 0:02:16]} 20... Rfc8 {[%clk 0:01:38.6]} 21. g4 {[%clk 0:02:16]}
21... Ne7 {[%clk 0:01:34.5]} 22. Rxc7 {[%clk 0:02:11.5]} 22... Qxc7 {[%clk
0:01:30.4]} 23. b5 {[%clk 0:02:10.4]} 23... Qc3 {[%clk 0:01:15.7]} 24. Qxc3
{[%clk 0:02:08.9]} 24... Rxc3 {[%clk 0:01:16.6]} 25. a4 {[%clk 0:02:07.5]} 25...
Kf8 {[%clk 0:00:58.7]} 26. Ra1 {[%clk 0:02:06.8]} 26... Ke8 {[%clk 0:00:52.5]}
27. a5 {[%clk 0:02:03]} 27... bxa5 {[%clk 0:00:52.8]} 28. Rxa5 {[%clk
0:01:59.5]} 28... Rc7 {[%clk 0:00:53.4]} 29. Nd2 {[%clk 0:01:55.1]} 29... Nc8
{[%clk 0:00:48.8]} 30. Nb3 {[%clk 0:01:51.2]} 30... Rc4 {[%clk 0:00:48.6]} 31.
Ra6 {[%clk 0:00:59.8]} 31... Rb4 {[%clk 0:00:46.8]} 32. Nc5 {[%clk 0:00:48.3]}
32... Rxb5 {[%clk 0:00:40.7]} 33. Rc6 {[%clk 0:00:46.5]} 33... Kd8 {[%clk
0:00:40.4]} 34. f4 {[%clk 0:00:46.7]} 34... Rb6 {[%clk 0:00:38]} 35. Rxb6 {[%clk
0:00:43.1]} 35... Nxb6 {[%clk 0:00:26.9]} 36. f5 {[%clk 0:00:41.8]} 36... Ke7
{[%clk 0:00:25.3]} 37. Na6 {[%clk 0:00:37.2]} 37... f6 {[%clk 0:00:21.5]} 38.
Kf3 {[%clk 0:00:37.3]} 38... Nc4 {[%clk 0:00:18.1]} 39. Kf4 {[%clk 0:00:37.4]}
39... fxe5+ {[%clk 0:00:13.4]} 40. dxe5 {[%clk 0:00:38.3]} 40... d4 {[%clk
0:00:14.3]} 41. Nc5 {[%clk 0:00:37.3]} 41... exf5 {[%clk 0:00:14.5]} 42. gxf5
{[%clk 0:00:37.9]} 42... a5 {[%clk 0:00:10.9]} 43. Ke4 {[%clk 0:00:38.1]} 43...
a4 {[%clk 0:00:11.4]} 44. Nxa4 {[%clk 0:00:36.6]} 44... d3 {[%clk 0:00:11]} 45.
Nc3 {[%clk 0:00:19.4]} 45... d2 {[%clk 0:00:10.4]} 46. Nd1 {[%clk 0:00:19.4]}
46... Nb6 {[%clk 0:00:07.7]} 47. Kd4 {[%clk 0:00:18.9]} 47... Nd7 {[%clk
0:00:05.8]} 48. Ne3 {[%clk 0:00:16.3]} 48... Ke8 {[%clk 0:00:04.3]} 49. Nd1
{[%clk 0:00:12.5]} 49... Ke7 {[%clk 0:00:04.8]} 50. Nc3 {[%clk 0:00:12.6]} 50...
Ke8 {[%clk 0:00:04.9]} 51. Nd1 {[%clk 0:00:12.6]} 51... Ke7 {[%clk 0:00:05.3]}
1/2-1/2

[Event "Late-Titled-Tuesday-Blitz-October-10-2023"]
[Site "Chess.com"]
[Date "2023.10.10"]
[Round "8"]
[White "Grandmaster1369"]
[Black "Zhigalko_Sergei"]
[Result "0-1"]
[WhiteElo "2762"]
[BlackElo "2903"]
[TimeControl "180+1"]
[EndTime "15:23:39 PDT"]
[Termination "Zhigalko_Sergei won by resignation"]

1. e4 {[%clk 0:02:59.6]} 1... c5 {[%clk 0:03:00]} 2. Nc3 {[%clk 0:03:00.3]} 2...
Nc6 {[%clk 0:03:00.2]} 3. f4 {[%clk 0:03:00.9]} 3... g6 {[%clk 0:03:00.5]} 4.
Nf3 {[%clk 0:03:01.6]} 4... Bg7 {[%clk 0:03:01.2]} 5. Bb5 {[%clk 0:03:02.3]}
5... Nd4 {[%clk 0:03:01.8]} 6. O-O {[%clk 0:03:02.4]} 6... a6 {[%clk 0:03:00.1]}
7. Bc4 {[%clk 0:03:00.8]} 7... e6 {[%clk 0:03:00.1]} 8. d3 {[%clk 0:02:59.6]}
8... Ne7 {[%clk 0:02:59.9]} 9. Nxd4 {[%clk 0:03:00.1]} 9... cxd4 {[%clk
0:02:59.7]} 10. Ne2 {[%clk 0:03:00.7]} 10... d5 {[%clk 0:02:59.7]} 11. Bb3
{[%clk 0:03:01.4]} 11... dxe4 {[%clk 0:02:54]} 12. dxe4 {[%clk 0:03:02.3]} 12...
O-O {[%clk 0:02:54.3]} 13. e5 {[%clk 0:03:02.2]} 13... Nf5 {[%clk 0:02:33.9]}
14. c3 {[%clk 0:02:36.8]} 14... dxc3 {[%clk 0:02:12.8]} 15. Nxc3 {[%clk
0:02:32]} 15... Bd7 {[%clk 0:02:12.7]} 16. Qf3 {[%clk 0:02:14.7]} 16... Bc6
{[%clk 0:02:06.3]} 17. Qf2 {[%clk 0:02:14.8]} 17... Rc8 {[%clk 0:01:48.4]} 18.
Rd1 {[%clk 0:02:12.6]} 18... Qe7 {[%clk 0:01:44.4]} 19. Bd2 {[%clk 0:02:05.6]}
19... f6 {[%clk 0:01:35.8]} 20. g4 {[%clk 0:01:59.6]} 20... fxe5 {[%clk
0:01:26.1]} 21. gxf5 {[%clk 0:01:59.7]} 21... Rxf5 {[%clk 0:01:27]} 22. Re1
{[%clk 0:01:48.2]} 22... Rcf8 {[%clk 0:01:23]} 23. Bc2 {[%clk 0:01:35.4]} 23...
exf4 {[%clk 0:00:55.2]} 24. Be4 {[%clk 0:01:33.6]} 24... Rd8 {[%clk 0:00:31.8]}
25. Kh1 {[%clk 0:01:31.9]} 25... Bd4 {[%clk 0:00:10.9]} 26. Qf3 {[%clk
0:01:29.7]} 26... Qh4 {[%clk 0:00:07.9]} 27. Bxc6 {[%clk 0:01:25.2]} 27... bxc6
{[%clk 0:00:08.8]} 28. Re2 {[%clk 0:01:21.4]} 28... e5 {[%clk 0:00:08.5]} 29.
Ne4 {[%clk 0:01:20.8]} 29... c5 {[%clk 0:00:07.9]} 30. Be1 {[%clk 0:01:14.1]}
30... Qe7 {[%clk 0:00:07.2]} 31. Rc1 {[%clk 0:01:13]} 31... Qe6 {[%clk
0:00:06.8]} 32. b3 {[%clk 0:01:13]} 32... Qd5 {[%clk 0:00:06.8]} 33. Bh4 {[%clk
0:01:10.1]} 33... Rd7 {[%clk 0:00:05.4]} 34. Nf6+ {[%clk 0:01:09]} 34... Rxf6
{[%clk 0:00:05.9]} 35. Qxd5+ {[%clk 0:01:09.6]} 35... Rxd5 {[%clk 0:00:06.8]}
36. Bxf6 {[%clk 0:01:10.2]} 36... f3 {[%clk 0:00:07.7]} 37. Re4 {[%clk
0:01:08.6]} 37... Kf7 {[%clk 0:00:04.7]} 38. Bg5 {[%clk 0:01:08.9]} 38... Ke6
{[%clk 0:00:05.2]} 39. Be3 {[%clk 0:00:28.6]} 39... Kf5 {[%clk 0:00:05.5]} 40.
Bxd4 {[%clk 0:00:29.3]} 40... cxd4 {[%clk 0:00:03.5]} 41. Ree1 {[%clk
0:00:26.3]} 41... d3 {[%clk 0:00:03.3]} 42. Rcd1 {[%clk 0:00:21.9]} 42... Kf4
{[%clk 0:00:02.9]} 43. Kg1 {[%clk 0:00:21.6]} 43... d2 {[%clk 0:00:03.6]} 44.
Rf1 {[%clk 0:00:15.4]} 44... e4 {[%clk 0:00:03.9]} 45. Rf2 {[%clk 0:00:09.5]}
45... e3 {[%clk 0:00:04.4]} 46. Kf1 {[%clk 0:00:09.6]} 46... Ke4 {[%clk
0:00:04.3]} 47. h4 {[%clk 0:00:07.9]} 47... exf2 {[%clk 0:00:04.5]} 48. Kxf2
{[%clk 0:00:08.2]} 48... Kd3 {[%clk 0:00:05.1]} 0-1

[Event "Late-Titled-Tuesday-Blitz-October-10-2023"]
[Site "Chess.com"]
[Date "2023.10.10"]
[Round "8"]
[White "UK_23"]
[Black "Alphafischer2019"]
[Result "1-0"]
[WhiteElo "2408"]
[BlackElo "2570"]
[TimeControl "180+1"]
[EndTime "15:23:40 PDT"]
[Termination "UK_23 won by resignation"]

1. e4 {[%clk 0:02:56.1]} 1... c5 {[%clk 0:02:59.4]} 2. Nf3 {[%clk 0:02:56]} 2...
Nc6 {[%clk 0:02:59]} 3. Bb5 {[%clk 0:02:55.8]} 3... Nf6 {[%clk 0:02:58.7]} 4.
Bxc6 {[%clk 0:02:47.7]} 4... dxc6 {[%clk 0:02:58.6]} 5. d3 {[%clk 0:02:47.7]}
5... Bg4 {[%clk 0:02:57.6]} 6. Nbd2 {[%clk 0:02:47.6]} 6... Nd7 {[%clk 0:02:57]}
7. h3 {[%clk 0:02:47.1]} 7... Bh5 {[%clk 0:02:56.7]} 8. b3 {[%clk 0:02:45.4]}
8... e5 {[%clk 0:02:56.1]} 9. Bb2 {[%clk 0:02:44.8]} 9... f6 {[%clk 0:02:56.2]}
10. Qe2 {[%clk 0:02:41.4]} 10... Be7 {[%clk 0:02:56.1]} 11. g4 {[%clk
0:02:37.6]} 11... Bf7 {[%clk 0:02:54.9]} 12. h4 {[%clk 0:02:36.8]} 12... h6
{[%clk 0:02:52.8]} 13. h5 {[%clk 0:02:36.4]} 13... Nf8 {[%clk 0:02:53.2]} 14.
Nh4 {[%clk 0:02:28]} 14... Ne6 {[%clk 0:02:50.2]} 15. Nf5 {[%clk 0:02:28.4]}
15... Rg8 {[%clk 0:02:44.5]} 16. O-O-O {[%clk 0:02:16.3]} 16... Qd7 {[%clk
0:02:43.7]} 17. Kb1 {[%clk 0:02:15.4]} 17... O-O-O {[%clk 0:02:42.8]} 18. Nf3
{[%clk 0:02:13.1]} 18... Kb8 {[%clk 0:02:35.9]} 19. Qd2 {[%clk 0:02:12.9]} 19...
Ka8 {[%clk 0:02:35.3]} 20. Qa5 {[%clk 0:02:12.2]} 20... b6 {[%clk 0:02:34.8]}
21. Qa6 {[%clk 0:02:09.6]} 21... Nf4 {[%clk 0:02:32.6]} 22. Bxe5 {[%clk
0:01:29.9]} 22... fxe5 {[%clk 0:02:10.8]} 23. Nxe5 {[%clk 0:01:30.8]} 23... Qe6
{[%clk 0:01:59.9]} 24. Nxe7 {[%clk 0:01:25.7]} 24... Qxe7 {[%clk 0:01:43.3]} 25.
Nxc6 {[%clk 0:01:11.5]} 25... Qc7 {[%clk 0:01:43.2]} 26. Nxd8 {[%clk 0:01:09.4]}
26... Rxd8 {[%clk 0:01:41.8]} 27. Rhe1 {[%clk 0:01:07.1]} 27... Be6 {[%clk
0:01:40.4]} 28. f3 {[%clk 0:01:06.6]} 28... Rd4 {[%clk 0:01:34.9]} 29. c3 {[%clk
0:01:04.8]} 29... Bc8 {[%clk 0:01:31.4]} 30. Qa3 {[%clk 0:00:59.5]} 30... Rxd3
{[%clk 0:01:30.5]} 31. Rxd3 {[%clk 0:00:59.5]} 31... Nxd3 {[%clk 0:01:30.8]} 32.
Rd1 {[%clk 0:00:59.7]} 32... Nf4 {[%clk 0:01:28.5]} 33. Qa4 {[%clk 0:00:56.4]}
33... Qe7 {[%clk 0:00:58.2]} 34. Qc6+ {[%clk 0:00:40.7]} 34... Bb7 {[%clk
0:00:57.1]} 35. Qd7 {[%clk 0:00:39]} 35... Qxd7 {[%clk 0:00:55.8]} 36. Rxd7
{[%clk 0:00:39.9]} 36... Ne6 {[%clk 0:00:53.3]} 37. Re7 {[%clk 0:00:40]} 37...
Bc8 {[%clk 0:00:53.3]} 38. Kc2 {[%clk 0:00:38.2]} 38... Kb8 {[%clk 0:00:53.4]}
39. Kd3 {[%clk 0:00:37.4]} 39... a6 {[%clk 0:00:48.7]} 40. Ke3 {[%clk
0:00:37.7]} 40... b5 {[%clk 0:00:47.7]} 41. f4 {[%clk 0:00:37.6]} 41... Nf8
{[%clk 0:00:44.5]} 42. Rxg7 {[%clk 0:00:34]} 42... b4 {[%clk 0:00:45.1]} 43.
cxb4 {[%clk 0:00:33.8]} 43... cxb4 {[%clk 0:00:46]} 44. e5 {[%clk 0:00:32.8]}
44... Nd7 {[%clk 0:00:46.7]} 45. e6 {[%clk 0:00:30.8]} 45... Nf6 {[%clk
0:00:47.2]} 46. e7 {[%clk 0:00:25.7]} 46... Bd7 {[%clk 0:00:40.8]} 47. g5 {[%clk
0:00:23.5]} 47... hxg5 {[%clk 0:00:38.1]} 48. fxg5 {[%clk 0:00:24.4]} 48... Ne8
{[%clk 0:00:34.8]} 49. h6 {[%clk 0:00:20.6]} 49... Kc7 {[%clk 0:00:35.2]} 50. h7
{[%clk 0:00:19.3]} 50... Nxg7 {[%clk 0:00:35.5]} 51. h8=Q {[%clk 0:00:19.7]}
51... Nf5+ {[%clk 0:00:36.2]} 52. Kf4 {[%clk 0:00:20]} 52... Nxe7 {[%clk
0:00:36.9]} 53. Qe5+ {[%clk 0:00:19.3]} 53... Kd8 {[%clk 0:00:37.6]} 54. Qa5+
{[%clk 0:00:19.3]} 54... Ke8 {[%clk 0:00:37.6]} 55. Qxa6 {[%clk 0:00:19.1]}
55... Nd5+ {[%clk 0:00:37.9]} 56. Ke5 {[%clk 0:00:19.2]} 56... Ne7 {[%clk
0:00:37.9]} 57. g6 {[%clk 0:00:18.3]} 57... Nc6+ {[%clk 0:00:34.4]} 58. Kf6
{[%clk 0:00:18.5]} 58... Ne7 {[%clk 0:00:35.1]} 59. Qa8+ {[%clk 0:00:18.4]}
59... Bc8 {[%clk 0:00:35.3]} 60. g7 {[%clk 0:00:18.2]} 60... Kd7 {[%clk
0:00:35.9]} 61. Kf7 {[%clk 0:00:16.1]} 61... Kd6 {[%clk 0:00:31.3]} 62. Qb8+
{[%clk 0:00:15.5]} 62... Kd7 {[%clk 0:00:30.4]} 63. Qa7+ {[%clk 0:00:15.9]}
63... Kd6 {[%clk 0:00:30.5]} 64. Qxe7+ {[%clk 0:00:16.1]} 1-0

[Event "Late-Titled-Tuesday-Blitz-October-10-2023"]
[Site "Chess.com"]
[Date "2023.10.10"]
[Round "8"]
[White "The_Straightforward_Rook"]
[Black "YouShallNotPass001"]
[Result "1-0"]
[WhiteElo "2551"]
[BlackElo "2419"]
[TimeControl "180+1"]
[EndTime "15:23:40 PDT"]
[Termination "The_Straightforward_Rook won by checkmate"]

1. d4 {[%clk 0:03:00.9]} 1... Nf6 {[%clk 0:03:00]} 2. c4 {[%clk 0:03:00.6]} 2...
e6 {[%clk 0:03:00.9]} 3. Nf3 {[%clk 0:03:00.4]} 3... c5 {[%clk 0:02:59.4]} 4. d5
{[%clk 0:03:00.1]} 4... exd5 {[%clk 0:03:00.3]} 5. cxd5 {[%clk 0:03:00.8]} 5...
d6 {[%clk 0:03:00.9]} 6. Nc3 {[%clk 0:03:01.2]} 6... g6 {[%clk 0:03:01.2]} 7.
Bf4 {[%clk 0:03:01.4]} 7... Bg7 {[%clk 0:03:01.4]} 8. Qa4+ {[%clk 0:03:01]} 8...
Bd7 {[%clk 0:03:00.1]} 9. Qb3 {[%clk 0:03:01]} 9... b5 {[%clk 0:03:00.6]} 10.
Bxd6 {[%clk 0:02:55.5]} 10... Qb6 {[%clk 0:03:00.5]} 11. Bf4 {[%clk 0:02:54.3]}
11... O-O {[%clk 0:02:55.2]} 12. e3 {[%clk 0:02:39.5]} 12... c4 {[%clk
0:02:49.8]} 13. Qd1 {[%clk 0:02:38.9]} 13... Bg4 {[%clk 0:02:41.6]} 14. Be2
{[%clk 0:02:34.3]} 14... Nbd7 {[%clk 0:02:36]} 15. O-O {[%clk 0:02:32.1]} 15...
Nh5 {[%clk 0:02:32.8]} 16. Bg5 {[%clk 0:02:20.2]} 16... h6 {[%clk 0:02:25.6]}
17. Bh4 {[%clk 0:02:20.5]} 17... Rfe8 {[%clk 0:02:23.2]} 18. h3 {[%clk
0:02:16.3]} 18... Bxf3 {[%clk 0:02:23]} 19. Bxf3 {[%clk 0:02:17.2]} 19... Nhf6
{[%clk 0:02:22.9]} 20. Bg3 {[%clk 0:02:06.7]} 20... Rad8 {[%clk 0:02:21.4]} 21.
a3 {[%clk 0:02:00.7]} 21... Nc5 {[%clk 0:02:16.9]} 22. Qc2 {[%clk 0:01:47.8]}
22... Nfd7 {[%clk 0:02:10.3]} 23. Rad1 {[%clk 0:01:42.8]} 23... Ne5 {[%clk
0:02:08.3]} 24. Bxe5 {[%clk 0:01:40.1]} 24... Bxe5 {[%clk 0:02:09.2]} 25. g3
{[%clk 0:01:36.1]} 25... h5 {[%clk 0:02:06.2]} 26. Bg2 {[%clk 0:01:33.4]} 26...
h4 {[%clk 0:02:06.1]} 27. g4 {[%clk 0:01:30.9]} 27... Nd3 {[%clk 0:02:02.3]} 28.
Rxd3 {[%clk 0:01:24.4]} 28... cxd3 {[%clk 0:02:01.8]} 29. Qxd3 {[%clk
0:01:25.3]} 29... b4 {[%clk 0:01:55]} 30. axb4 {[%clk 0:01:17.3]} 30... Qxb4
{[%clk 0:01:55.9]} 31. Ne4 {[%clk 0:00:45.4]} 31... Qxb2 {[%clk 0:01:48.4]} 32.
Ng5 {[%clk 0:00:45.2]} 32... a5 {[%clk 0:01:43.3]} 33. Be4 {[%clk 0:00:44.7]}
33... Rd6 {[%clk 0:01:38.2]} 34. Rb1 {[%clk 0:00:39.5]} 34... Qc3 {[%clk
0:01:36.9]} 35. Rb7 {[%clk 0:00:28.3]} 35... Rf8 {[%clk 0:01:24.3]} 36. Qxc3
{[%clk 0:00:20.5]} 36... Bxc3 {[%clk 0:01:23.5]} 37. f4 {[%clk 0:00:20.2]} 37...
Ra6 {[%clk 0:01:18.1]} 38. Bd3 {[%clk 0:00:19.3]} 38... Raa8 {[%clk 0:01:17.5]}
39. Bc4 {[%clk 0:00:18.3]} 39... a4 {[%clk 0:01:17.5]} 40. d6 {[%clk 0:00:18.5]}
40... a3 {[%clk 0:01:10.8]} 41. Nxf7 {[%clk 0:00:17.8]} 41... Bg7 {[%clk
0:00:56]} 42. Ng5+ {[%clk 0:00:13.3]} 42... Kh8 {[%clk 0:00:55.2]} 43. Ba2
{[%clk 0:00:13.8]} 43... Rfd8 {[%clk 0:00:51.9]} 44. Nf7+ {[%clk 0:00:13.3]}
44... Kh7 {[%clk 0:00:52]} 45. Nxd8 {[%clk 0:00:12.6]} 45... Rxd8 {[%clk
0:00:52.1]} 46. d7 {[%clk 0:00:12.8]} 46... Bb2 {[%clk 0:00:50.2]} 47. Kf2
{[%clk 0:00:12.7]} 47... Kg7 {[%clk 0:00:49.7]} 48. Kf3 {[%clk 0:00:13.1]} 48...
Kf6 {[%clk 0:00:50]} 49. e4 {[%clk 0:00:13.5]} 49... Ke7 {[%clk 0:00:49.6]} 50.
e5 {[%clk 0:00:09.5]} 50... Rxd7 {[%clk 0:00:42.7]} 51. Rxd7+ {[%clk 0:00:10.4]}
51... Kxd7 {[%clk 0:00:43.1]} 52. Ke4 {[%clk 0:00:10.9]} 52... Ke7 {[%clk
0:00:43.2]} 53. f5 {[%clk 0:00:11.4]} 53... gxf5+ {[%clk 0:00:38.7]} 54. gxf5
{[%clk 0:00:11.8]} 54... Kf8 {[%clk 0:00:39]} 55. f6 {[%clk 0:00:11.6]} 55...
Bc3 {[%clk 0:00:37.7]} 56. Kf5 {[%clk 0:00:11.8]} 56... Bb4 {[%clk 0:00:35.6]}
57. e6 {[%clk 0:00:11.7]} 57... Ke8 {[%clk 0:00:36]} 58. Kg6 {[%clk 0:00:11.2]}
58... Kf8 {[%clk 0:00:35.6]} 59. Kg5 {[%clk 0:00:09.7]} 59... Be1 {[%clk
0:00:34.3]} 60. e7+ {[%clk 0:00:08.6]} 60... Ke8 {[%clk 0:00:33.9]} 61. Bb3
{[%clk 0:00:08.2]} 61... Bc3 {[%clk 0:00:25.2]} 62. Ba4+ {[%clk 0:00:08.4]}
62... Kf7 {[%clk 0:00:24.9]} 63. e8=Q# {[%clk 0:00:09.3]} 1-0

[Event "Late-Titled-Tuesday-Blitz-October-10-2023"]
[Site "Chess.com"]
[Date "2023.10.10"]
[Round "8"]
[White "AlleyOoper"]
[Black "vladoboch"]
[Result "1-0"]
[WhiteElo "2597"]
[BlackElo "2472"]
[TimeControl "180+1"]
[EndTime "15:23:44 PDT"]
[Termination "AlleyOoper won on time"]

1. c4 {[%clk 0:03:00.9]} 1... e5 {[%clk 0:02:59.5]} 2. Nc3 {[%clk 0:02:58]} 2...
Bb4 {[%clk 0:02:59.6]} 3. Nf3 {[%clk 0:02:57.4]} 3... Nc6 {[%clk 0:02:56.7]} 4.
Qc2 {[%clk 0:02:55.9]} 4... Nf6 {[%clk 0:02:54.6]} 5. e3 {[%clk 0:02:56.3]} 5...
O-O {[%clk 0:02:52.8]} 6. Nd5 {[%clk 0:02:56.4]} 6... Bc5 {[%clk 0:02:46.2]} 7.
a3 {[%clk 0:02:45.1]} 7... d6 {[%clk 0:02:46.5]} 8. b4 {[%clk 0:02:42.7]} 8...
Bb6 {[%clk 0:02:46.9]} 9. Bd3 {[%clk 0:02:42]} 9... h6 {[%clk 0:02:40.3]} 10.
Nxf6+ {[%clk 0:02:39.2]} 10... Qxf6 {[%clk 0:02:39.9]} 11. Bb2 {[%clk
0:02:39.9]} 11... a5 {[%clk 0:02:36.7]} 12. b5 {[%clk 0:02:39.6]} 12... Ne7
{[%clk 0:02:36.1]} 13. a4 {[%clk 0:02:30.1]} 13... Bg4 {[%clk 0:02:34.3]} 14.
Be4 {[%clk 0:02:29.6]} 14... c6 {[%clk 0:02:28.2]} 15. h3 {[%clk 0:02:27]} 15...
Bh5 {[%clk 0:02:21.1]} 16. g4 {[%clk 0:02:12.7]} 16... Bg6 {[%clk 0:02:17.2]}
17. Ke2 {[%clk 0:02:01.4]} 17... d5 {[%clk 0:02:12.1]} 18. Bxe5 {[%clk
0:01:18.7]} 18... dxe4 {[%clk 0:02:11.5]} 19. Bxf6 {[%clk 0:01:18.8]} 19...
exf3+ {[%clk 0:02:10.7]} 20. Kxf3 {[%clk 0:01:16.3]} 20... Bxc2 {[%clk
0:02:11.6]} 21. Bxe7 {[%clk 0:01:16.1]} 21... Rfe8 {[%clk 0:02:09.4]} 22. Ba3
{[%clk 0:01:13.9]} 22... Be4+ {[%clk 0:02:08.1]} 23. Ke2 {[%clk 0:01:14.1]}
23... Bxh1 {[%clk 0:02:07.4]} 24. Rxh1 {[%clk 0:01:14.1]} 24... cxb5 {[%clk
0:02:07.7]} 25. axb5 {[%clk 0:01:13.7]} 25... Rac8 {[%clk 0:02:02.4]} 26. d3
{[%clk 0:01:13.4]} 26... Bc5 {[%clk 0:02:02.4]} 27. Bb2 {[%clk 0:01:11.3]} 27...
a4 {[%clk 0:02:01.5]} 28. d4 {[%clk 0:01:10.9]} 28... Bb4 {[%clk 0:01:59.1]} 29.
Kd3 {[%clk 0:01:09.7]} 29... a3 {[%clk 0:01:50]} 30. Ba1 {[%clk 0:01:09.4]}
30... b6 {[%clk 0:01:49.4]} 31. Rb1 {[%clk 0:01:06.5]} 31... Bd6 {[%clk
0:01:46.3]} 32. Rb3 {[%clk 0:00:58.5]} 32... Ra8 {[%clk 0:01:43.9]} 33. f4
{[%clk 0:00:48]} 33... a2 {[%clk 0:01:33.5]} 34. f5 {[%clk 0:00:48.1]} 34... Ra3
{[%clk 0:01:32.3]} 35. Rxa3 {[%clk 0:00:48.4]} 35... Bxa3 {[%clk 0:01:32.4]} 36.
e4 {[%clk 0:00:48]} 36... Ra8 {[%clk 0:01:28.4]} 37. e5 {[%clk 0:00:39.3]} 37...
Bb4 {[%clk 0:01:20.4]} 38. Ke4 {[%clk 0:00:30.6]} 38... Ra3 {[%clk 0:01:18.3]}
39. c5 {[%clk 0:00:23.3]} 39... Bc3 {[%clk 0:01:17.5]} 40. cxb6 {[%clk
0:00:20.4]} 40... Bxa1 {[%clk 0:01:00]} 41. b7 {[%clk 0:00:20.7]} 41... Re3+
{[%clk 0:00:37.6]} 42. Kxe3 {[%clk 0:00:16.5]} 42... Bxd4+ {[%clk 0:00:37.2]}
43. Ke4 {[%clk 0:00:17.2]} 43... a1=Q {[%clk 0:00:36.3]} 44. b8=Q+ {[%clk
0:00:17.5]} 44... Kh7 {[%clk 0:00:37.1]} 45. Qd6 {[%clk 0:00:10.5]} 45... Bf2
{[%clk 0:00:26.5]} 46. Kd5 {[%clk 0:00:09.7]} 46... Qa2+ {[%clk 0:00:23.1]} 47.
Kc6 {[%clk 0:00:09.9]} 47... Qa8+ {[%clk 0:00:23.5]} 48. Kd7 {[%clk 0:00:09.3]}
48... Qb7+ {[%clk 0:00:23.5]} 49. Ke8 {[%clk 0:00:08.8]} 49... Qxb5+ {[%clk
0:00:18.4]} 50. Kxf7 {[%clk 0:00:08.6]} 50... Bc5 {[%clk 0:00:16.9]} 51. Qg6+
{[%clk 0:00:07.5]} 1-0